bitfinex-derivatives/quotes_BTCF0:USTF0_20250722
["timestamp","ask_amount","ask_price","bid_price","bid_amount"]
[1753160851306,0.5008174,116920.0,116910.0,1.58007885]
[1753160852407,0.5008174,116920.0,116910.0,1.40909675]
[1753160852607,0.5008174,116920.0,116910.0,1.58007875]
[1753160854296,0.5008174,116920.0,116910.0,1.06904286]
[1753160855110,0.5008174,116920.0,116910.0,1.24002486]
[1753160855610,0.5008174,116920.0,116910.0,1.06904286]
[1753160855806,0.5008174,116920.0,116910.0,1.24002496]
[1753160856711,0.5008174,116920.0,116910.0,1.31083496]
[1753160857302,0.5008174,116920.0,116910.0,1.13985286]
[1753160857501,0.5008174,116920.0,116910.0,1.06904286]
[1753160857900,0.8616174,116920.0,116910.0,0.03467286]
[1753160858212,0.8616174,116920.0,116910.0,0.66684]
[1753160859706,0.8626174,116920.0,116910.0,0.003]
[1753160860114,1.37373529,116920.0,116910.0,0.003]
[1753160860410,0.3908321,116910.0,116900.0,0.7105712]
[1753160860611,0.50951309,116910.0,116900.0,0.7105712]
[1753160861117,0.5008321,116910.0,116900.0,0.7105712]
[1753160861309,0.5008321,116910.0,116900.0,0.67989834]
[1753160861509,0.5008321,116910.0,116900.0,0.68189834]
[1753160861709,0.5008321,116910.0,116900.0,0.68181834]
[1753160862716,0.5008321,116910.0,116900.0,0.86298504]
[1753160862917,0.5008321,116910.0,116900.0,0.73515834]
[1753160863319,0.5008321,116910.0,116900.0,0.76539834]
[1753160864513,0.5008321,116910.0,116900.0,0.7960712]
[1753160864912,0.4561621,116910.0,116900.0,0.8819012]
[1753160865112,0.4561621,116910.0,116900.0,1.36227893]
[1753160865315,0.5031621,116910.0,116900.0,1.41548179]
[1753160865516,0.5031621,116910.0,116900.0,1.22195509]
[1753160865711,0.8639621,116910.0,116900.0,0.7226612]
[1753160865916,0.8639621,116910.0,116900.0,0.69198834]
[1753160866318,0.8639621,116910.0,116900.0,0.7226612]
[1753160867420,0.8639621,116910.0,116900.0,0.7679012]
[1753160868520,0.8712621,116910.0,116900.0,0.7679012]
[1753160870424,0.5104621,116910.0,116900.0,1.10795509]
[1753160871416,0.5104621,116910.0,116900.0,0.7679012]
[1753160872022,0.5104621,116910.0,116900.0,0.7983812]
[1753160872516,0.8712621,116910.0,116900.0,0.90918049]
[1753160872723,0.5104621,116910.0,116900.0,0.93022049]
[1753160873223,0.5104621,116910.0,116900.0,1.22001611]
[1753160873916,0.4011021,116910.0,116900.0,1.38286995]
[1753160874223,0.3351921,116910.0,116900.0,2.00766066]
[1753160874420,0.3351921,116910.0,116900.0,1.69766066]
[1753160875324,0.3351921,116910.0,116900.0,1.80872873]
[1753160875616,0.2882821,116910.0,116900.0,1.80872873]
[1753160876217,0.2882821,116910.0,116900.0,2.16872873]
[1753160877615,0.3358421,116910.0,116900.0,2.16872873]
[1753160877814,0.3358421,116910.0,116900.0,1.80872873]
[1753160878021,0.5109121,116910.0,116900.0,1.364053]
[1753160878524,0.5109121,116910.0,116900.0,1.724853]
[1753160878925,0.5109121,116910.0,116900.0,1.747383]
[1753160880033,0.5109121,116910.0,116900.0,1.79351322]
[1753160880829,0.5109121,116910.0,116900.0,1.77098322]
[1753160881624,0.5109121,116910.0,116900.0,1.79351517]
[1753160881822,0.1173,116910.0,116900.0,2.057383]
[1753160882028,0.01222,116910.0,116900.0,2.87932669]
[1753160882231,0.00222,116910.0,116900.0,2.87932669]
[1753160882630,0.02222,116910.0,116900.0,2.87932669]
[1753160882931,0.02222,116910.0,116900.0,2.81798096]
[1753160883122,0.02222,116910.0,116900.0,2.8947075]
[1753160884229,0.02222,116910.0,116900.0,3.1911075]
[1753160885035,0.14383,116940.0,116930.0,0.1709528]
[1753160885229,0.26417,116940.0,116930.0,1.62668953]
[1753160885532,0.24468,116940.0,116930.0,1.94596735]
[1753160885731,0.24468,116940.0,116930.0,1.95445612]
[1753160886134,0.24468,116940.0,116930.0,1.90837284]
[1753160886430,0.13,116940.0,116930.0,1.95442646]
[1753160886634,0.133,116940.0,116930.0,1.95442646]
[1753160886827,0.133,116940.0,116930.0,1.96981721]
[1753160887226,0.13,116940.0,116930.0,1.90937284]
[1753160887534,0.13,116940.0,116930.0,1.97081721]
[1753160887734,0.133,116940.0,116930.0,1.97081721]
[1753160889132,0.3039377,116940.0,116930.0,1.94081721]
[1753160889434,0.4156177,116940.0,116930.0,1.94535066]
[1753160889634,0.4156177,116940.0,116930.0,1.60535066]
[1753160889831,0.4156177,116940.0,116930.0,1.55937284]
[1753160890036,0.4156177,116940.0,116930.0,1.89937284]
[1753160891232,0.24468,116940.0,116930.0,1.89937284]
[1753160891440,0.13,116940.0,116930.0,1.89937284]
[1753160891738,0.13,116940.0,116930.0,1.9453221]
[1753160892637,0.13,116940.0,116930.0,1.60580414]
[1753160892838,0.13,116940.0,116930.0,1.9453221]
[1753160895238,0.13,116940.0,116930.0,1.89534016]
[1753160895639,0.4162876,116940.0,116930.0,1.89534016]
[1753160895940,0.26627,116940.0,116930.0,1.89534016]
[1753160896142,0.26627,116940.0,116930.0,1.60580414]
[1753160896442,0.26627,116940.0,116930.0,1.89534016]
[1753160897535,0.437209,116940.0,116930.0,1.89534016]
[1753160897735,0.526039,116940.0,116930.0,0.94472414]
[1753160897940,0.526039,116940.0,116930.0,1.89426016]
[1753160899340,0.3551,116940.0,116930.0,1.89426016]
[1753160899536,0.24535,116940.0,116930.0,1.89426016]
[1753160899738,0.13,116940.0,116930.0,1.87426016]
[1753160900147,0.13,116940.0,116930.0,1.8283109]
[1753160900645,1.63,116940.0,116930.0,1.8283109]
[1753160901347,1.63,116940.0,116930.0,1.88975527]
[1753160903341,1.63,116940.0,116930.0,1.56975527]
[1753160903546,1.74535,116940.0,116930.0,1.91975527]
[1753160903936,1.76627,116940.0,116930.0,1.91975527]
[1753160906148,1.74535,116940.0,116930.0,1.91975527]
[1753160907053,1.63,116940.0,116930.0,1.91975527]
[1753160908253,1.63,116940.0,116930.0,1.8583109]
[1753160908459,1.74535,116940.0,116930.0,1.8583109]
[1753160908654,1.74535,116940.0,116930.0,1.91966273]
[1753160909156,1.74535,116940.0,116930.0,1.8583109]
[1753160909545,1.74535,116940.0,116930.0,1.93503744]
[1753160909946,1.63,116940.0,116930.0,1.93503744]
[1753160910150,1.63,116940.0,116930.0,1.8583109]
[1753160910662,1.5,116940.0,116930.0,2.0293429]
[1753160910850,0.13627,116960.0,116950.0,0.1709248]
[1753160911052,0.24627,116960.0,116950.0,1.88625623]
[1753160911453,0.5060102,116960.0,116950.0,1.52625623]
[1753160911656,0.5060102,116960.0,116950.0,1.48022082]
[1753160911856,0.5080102,116960.0,116950.0,1.48022082]
[1753160912555,0.5100102,116960.0,116950.0,1.48022082]
[1753160912951,0.3391,116960.0,116950.0,1.48022082]
[1753160913154,0.3391,116960.0,116950.0,1.86736475]
[1753160913657,0.3391,116960.0,116950.0,1.5669685]
[1753160914160,0.3391,116960.0,116950.0,1.62834905]
[1753160914356,0.5100102,116960.0,116950.0,1.62834905]
[1753160918053,0.3391,116960.0,116950.0,1.62834905]
[1753160918254,0.3391,116960.0,116950.0,1.9269685]
[1753160919259,0.3391,116960.0,116950.0,1.5669685]
[1753160919457,0.3391,116960.0,116950.0,1.9369685]
[1753160919662,0.5100102,116960.0,116950.0,1.5669685]
[1753160920559,0.3391,116960.0,116950.0,1.5669685]
[1753160920753,0.5100102,116960.0,116950.0,1.8969685]
[1753160920952,0.5100102,116960.0,116950.0,1.5669685]
[1753160921560,0.5100102,116960.0,116950.0,1.9277685]
[1753160921962,0.3391,116960.0,116950.0,1.9277685]
[1753160922363,0.26073,116960.0,116950.0,2.3077685]
[1753160922862,0.25027,116960.0,116950.0,2.36914905]
[1753160923560,0.4211802,116960.0,116950.0,1.98914905]
[1753160923761,0.5100102,116960.0,116950.0,1.98914905]
[1753160925362,0.3391,116960.0,116950.0,1.98914905]
[1753160926062,0.5100102,116960.0,116950.0,1.98914905]
[1753160927659,0.4211802,116960.0,116950.0,1.98914905]
[1753160927865,0.25027,116960.0,116950.0,2.34914905]
[1753160929956,0.114,116960.0,116950.0,2.63868507]
[1753160930161,0.12773,116970.0,116960.0,0.1709102]
[1753160930362,0.02243,116970.0,116960.0,1.54225621]
[1753160931268,0.02243,116970.0,116960.0,1.48078224]
[1753160931467,0.02243,116970.0,116960.0,1.55750878]
[1753160932362,0.1153,116980.0,116970.0,0.1708964]
[1753160932562,0.1553,116980.0,116970.0,1.80535913]
[1753160933068,0.1553,116980.0,116970.0,1.86677103]
[1753160933367,0.1563,116980.0,116970.0,1.80535913]
[1753160933564,0.1563,116980.0,116970.0,1.88208567]
[1753160935268,1.6563,116980.0,116970.0,1.80535913]
[1753160935968,0.1563,116980.0,116970.0,1.88208567]
[1753160936168,0.1563,116980.0,116970.0,1.80535913]
[1753160936465,1.6563,116980.0,116970.0,1.80535913]
[1753160936867,1.6563,116980.0,116970.0,1.51582311]
[1753160937065,1.6563,116980.0,116970.0,1.80535913]
[1753160937265,1.67652,116980.0,116970.0,1.80535913]
[1753160938265,1.67652,116980.0,116970.0,1.86668568]
[1753160940373,1.67652,116980.0,116970.0,1.20952568]
[1753160940572,1.8474018,116980.0,116970.0,1.72518928]
[1753160940776,1.8474018,116980.0,116970.0,1.10565326]
[1753160940976,1.8474018,116980.0,116970.0,1.21522311]
[1753160941275,1.8474018,116980.0,116970.0,1.26121999]
[1753160941568,1.8474018,116980.0,116970.0,0.97306273]
[1753160941769,2.13693782,116980.0,116970.0,0.72952744]
[1753160941973,2.13693782,116980.0,116970.0,0.75019526]
[1753160942175,2.13693782,116980.0,116970.0,0.04763453]
[1753160942374,2.49773782,116980.0,116970.0,0.70395453]
[1753160943067,2.13693782,116980.0,116970.0,0.70395453]
[1753160943270,1.8474018,116980.0,116970.0,0.87485093]
[1753160943470,2.49773782,116980.0,116970.0,0.70395453]
[1753160943771,2.49773782,116980.0,116970.0,0.87485083]
[1753160944275,2.2082018,116980.0,116970.0,0.87485083]
[1753160944777,1.8474018,116980.0,116970.0,0.87485083]
[1753160944976,1.8474018,116980.0,116970.0,0.92085156]
[1753160945176,1.8474019,116980.0,116970.0,1.57118758]
[1753160945579,1.8474019,116980.0,116970.0,1.54051976]
[1753160946073,1.8474019,116980.0,116970.0,1.25098374]
[1753160946267,1.8474019,116980.0,116970.0,1.54051976]
[1753160948477,1.8474019,116980.0,116970.0,1.25098374]
[1753160948779,1.8474019,116980.0,116970.0,1.54051976]
[1753160952386,1.8474019,116980.0,116970.0,1.36962346]
[1753160952680,1.8474019,116980.0,116970.0,1.54051996]
[1753160952878,1.8474019,116980.0,116970.0,1.36962346]
[1753160953081,1.8474019,116980.0,116970.0,1.54051996]
[1753160953284,2.49773792,116980.0,116970.0,0.71852744]
[1753160953678,3.15325792,116980.0,116970.0,0.09365824]
[1753160954079,3.15325792,116980.0,116970.0,0.04765751]
[1753160954289,2.8637219,116980.0,116970.0,0.04765751]
[1753160954483,3.15325792,116980.0,116970.0,0.04765751]
[1753160955083,2.8637219,116980.0,116970.0,0.04765751]
[1753160955386,3.15325792,116980.0,116970.0,0.04765751]
[1753160957581,3.15325792,116980.0,116970.0,0.21855401]
[1753160957786,3.15325792,116980.0,116970.0,0.04765751]
[1753160957993,3.15325792,116980.0,116970.0,0.21855401]
[1753160959188,3.15325792,116980.0,116970.0,0.04765751]
[1753160959392,3.15325792,116980.0,116970.0,0.21855401]
[1753160959593,2.8637219,116980.0,116970.0,0.21855401]
[1753160959886,3.15325792,116980.0,116970.0,0.21855401]
[1753160960287,3.15325792,116980.0,116970.0,0.04765751]
[1753160960488,3.15325792,116980.0,116970.0,0.21855401]
[1753160960790,3.15325792,116980.0,116970.0,0.04765751]
[1753160961596,3.15325792,116980.0,116970.0,0.0475638]
[1753160962102,2.49773792,116980.0,116970.0,0.0475638]
[1753160962300,3.15261792,116980.0,116970.0,0.2184603]
[1753160963496,3.15261792,116980.0,116970.0,0.0475638]
[1753160964004,3.15261792,116980.0,116970.0,0.2184603]
[1753160964303,2.5022819,116980.0,116970.0,0.2184603]
[1753160965298,1.8474019,116980.0,116970.0,0.2184603]
[1753160965505,2.5020419,116980.0,116970.0,0.2184603]
[1753160965698,2.5020419,116980.0,116970.0,0.09356453]
[1753160966003,2.8628419,116980.0,116970.0,0.0475638]
[1753160966202,2.8628419,116980.0,116970.0,0.09356453]
[1753160966403,2.8628419,116980.0,116970.0,0.0475638]
[1753160966596,2.8628419,116980.0,116970.0,0.2184603]
[1753160966793,2.5020419,116980.0,116970.0,0.2184603]
[1753160966999,2.5020419,116980.0,116970.0,0.26446103]
[1753160968202,2.5020419,116980.0,116970.0,0.23377023]
[1753160968600,1.8474019,116980.0,116970.0,0.88410625]
[1753160969404,1.8474019,116980.0,116970.0,0.59457023]
[1753160969608,1.8474019,116980.0,116970.0,0.88410625]
[1753160976408,1.8474019,116980.0,116970.0,0.59457023]
[1753160976607,1.8474019,116980.0,116970.0,0.88410625]
[1753160978900,1.8474019,116980.0,116970.0,1.53758625]
[1753160980011,1.8474019,116980.0,116970.0,1.87291207]
[1753160981216,1.8474018,116980.0,116970.0,1.81158552]
[1753160981411,1.8474018,116980.0,116970.0,1.87291207]
[1753160982009,1.67652,116980.0,116970.0,1.87291207]
[1753160982306,1.67652,116980.0,116970.0,1.15810552]
[1753160982504,1.67652,116980.0,116970.0,1.88803206]
[1753160983212,1.541,116980.0,116970.0,1.88803206]
[1753160983412,1.65491,116980.0,116970.0,1.88803206]
[1753160983608,1.67476,116980.0,116970.0,1.88791206]
[1753160983820,1.67476,116980.0,116970.0,1.88787206]
[1753160988418,1.67476,116980.0,116970.0,1.81114552]
[1753160989906,1.67476,116980.0,116970.0,0.8685695]
[1753160990120,1.8456418,116980.0,116970.0,1.81074552]
[1753160990414,1.8378418,116980.0,116970.0,1.81074552]
[1753160990818,1.66696,116980.0,116970.0,1.81074552]
[1753160992019,1.66696,116980.0,116970.0,1.5212095]
[1753160992220,1.66696,116980.0,116970.0,1.81074552]
[1753160994019,1.66696,116980.0,116970.0,1.87212953]
[1753160997024,1.8378418,116980.0,116970.0,1.87212953]
[1753160998523,1.66696,116980.0,116970.0,1.87212953]
[1753160999727,1.8378419,116980.0,116970.0,1.87212953]
[1753161000227,1.66696,116980.0,116970.0,1.87212953]
[1753161000416,0.25311,116980.0,116970.0,1.87212953]
[1753161000617,0.4239919,116980.0,116970.0,1.34143351]
[1753161000818,0.71352792,116980.0,116970.0,1.34143351]
[1753161001021,2.21352792,116980.0,116970.0,1.34143351]
[1753161001321,1.9239919,116980.0,116970.0,1.34143351]
[1753161001820,1.9239919,116980.0,116970.0,1.26143341]
[1753161002021,2.21352792,116980.0,116970.0,1.26143341]
[1753161002220,2.57432792,116980.0,116970.0,0.69754931]
[1753161002524,3.22568792,116980.0,116970.0,0.55910931]
[1753161003127,3.22568792,116980.0,116970.0,0.73000571]
[1753161003730,3.22568792,116980.0,116970.0,0.55910931]
[1753161004736,3.22568792,116980.0,116970.0,0.58981865]
[1753161004924,3.22568792,116980.0,116970.0,0.07677865]
[1753161005730,0.2570465,116970.0,116960.0,0.8222306]
[1753161006026,1.14954252,116970.0,116960.0,0.8222306]
[1753161006226,1.14954252,116970.0,116960.0,0.65132]
[1753161006431,0.8600065,116970.0,116960.0,0.65132]
[1753161006629,1.14954252,116970.0,116960.0,0.65132]
[1753161007534,0.3688811,116960.0,116950.0,0.73774768]
[1753161007735,0.78875712,116960.0,116950.0,0.73774768]
[1753161008033,0.4992211,116960.0,116950.0,0.90859338]
[1753161008428,0.4992211,116960.0,116950.0,0.73766768]
[1753161008829,0.4992211,116960.0,116950.0,0.90859338]
[1753161009229,0.4992211,116960.0,116950.0,0.73766768]
[1753161009535,0.4992211,116960.0,116950.0,0.72352375]
[1753161010334,0.4992211,116960.0,116950.0,0.65392]
[1753161010537,0.4992211,116960.0,116950.0,0.8248457]
[1753161010933,0.4992211,116960.0,116950.0,0.65392]
[1753161011336,0.4992211,116960.0,116950.0,0.8248457]
[1753161012037,0.4992211,116960.0,116950.0,0.65392]
[1753161012832,1.43943712,116960.0,116950.0,0.003]
[1753161013227,1.97124512,116960.0,116950.0,0.003]
[1753161014334,2.0401632,116960.0,116950.0,0.003]
[1753161014634,2.0411632,116960.0,116950.0,0.002]
[1753161015640,1.75162718,116960.0,116950.0,0.002]
[1753161016036,2.0411632,116960.0,116950.0,0.002]
[1753161018142,1.75162718,116960.0,116950.0,0.002]
[1753161018337,2.0411632,116960.0,116950.0,0.002]
[1753161019143,1.75162718,116960.0,116950.0,0.002]
[1753161019344,2.0411632,116960.0,116950.0,0.002]
[1753161020237,1.75162718,116960.0,116950.0,0.002]
[1753161020437,0.3672657,116950.0,116940.0,0.1709396]
[1753161020747,0.5168257,116950.0,116940.0,0.1709396]
[1753161021038,0.80636172,116950.0,116940.0,0.1709396]
[1753161021444,0.80636172,116950.0,116940.0,0.1719396]
[1753161022140,0.5168257,116950.0,116940.0,0.1719396]
[1753161022843,0.80636172,116950.0,116940.0,0.1719396]
[1753161023043,0.80636172,116950.0,116940.0,0.18988337]
[1753161024542,0.5168257,116950.0,116940.0,0.01894377]
[1753161024746,0.80636172,116950.0,116940.0,0.01894377]
[1753161026051,1.16716172,116950.0,116940.0,0.01894377]
[1753161027041,0.2565003,116940.0,116930.0,0.04597137]
[1753161027238,1.44557632,116940.0,116930.0,0.04597137]
[1753161027638,0.2565149,116930.0,116920.0,0.40677137]
[1753161027848,0.79639092,116930.0,116920.0,0.48677137]
[1753161028051,0.79639092,116930.0,116920.0,0.65774097]
[1753161028347,0.5068549,116930.0,116920.0,0.68952097]
[1753161028650,0.5068549,116930.0,116920.0,0.7762741]
[1753161028843,0.5068549,116930.0,116920.0,0.76759097]
[1753161029543,0.5068549,116930.0,116920.0,0.59662137]
[1753161030650,0.5068549,116930.0,116920.0,0.76759097]
[1753161030841,0.5068549,116930.0,116920.0,0.81059097]
[1753161031649,0.5068549,116930.0,116920.0,0.63962137]
[1753161032448,0.5068549,116930.0,116920.0,0.81059087]
[1753161034952,0.5068549,116930.0,116920.0,0.44979087]
[1753161035844,0.5068549,116930.0,116920.0,0.48049657]
[1753161037352,0.5068549,116930.0,116920.0,0.44979087]
[1753161038049,0.4872949,116930.0,116920.0,1.08183689]
[1753161038249,0.430695,116930.0,116920.0,1.13183689]
[1753161038553,0.430695,116930.0,116920.0,1.14183689]
[1753161038955,0.430695,116930.0,116920.0,1.13183689]
[1753161039155,0.477315,116930.0,116920.0,1.13183689]
[1753161039956,0.477315,116930.0,116920.0,1.08586552]
[1753161041255,0.506855,116930.0,116920.0,0.7963295]
[1753161041552,0.506855,116930.0,116920.0,1.13194648]
[1753161041858,0.506855,116930.0,116920.0,1.13194566]
[1753161042055,0.506855,116930.0,116920.0,1.08586552]
[1753161042251,0.506855,116930.0,116920.0,1.13195179]
[1753161042445,0.506855,116930.0,116920.0,1.08586552]
[1753161042650,0.506855,116930.0,116920.0,0.7711521]
[1753161043052,0.506855,116930.0,116920.0,1.4619521]
[1753161043258,0.506855,116930.0,116920.0,1.12586552]
[1753161043757,0.506855,116930.0,116920.0,1.18724953]
[1753161044554,0.506855,116930.0,116920.0,0.53691351]
[1753161044859,0.506855,116930.0,116920.0,0.94335552]
[1753161045055,0.506855,116930.0,116920.0,1.36470552]
[1753161045256,0.506855,116930.0,116920.0,1.42608953]
[1753161045659,0.487295,116930.0,116920.0,1.42608953]
[1753161045856,0.487295,116930.0,116920.0,2.07348953]
[1753161049462,0.18416,116930.0,116920.0,2.07348953]
[1753161049665,0.355115,116930.0,116920.0,2.07348953]
[1753161049961,0.355115,116930.0,116920.0,2.01210552]
[1753161050158,0.355115,116930.0,116920.0,2.07348953]
[1753161050657,0.18416,116930.0,116920.0,2.36302555]
[1753161050859,0.12,116930.0,116920.0,2.36302555]
[1753161051060,0.12,116930.0,116920.0,2.30164154]
[1753161051561,0.12,116930.0,116920.0,2.01138552]
[1753161051765,0.290955,116930.0,116920.0,1.36470552]
[1753161051959,0.358495,116930.0,116920.0,1.44143206]
[1753161052161,0.358495,116930.0,116920.0,2.08803206]
[1753161052666,0.358495,116930.0,116920.0,1.36470552]
[1753161052963,0.358495,116930.0,116920.0,2.01130552]
[1753161053562,0.358495,116930.0,116920.0,2.07279357]
[1753161054066,0.358495,116930.0,116920.0,2.01130552]
[1753161054662,1.858495,116930.0,116920.0,2.01130552]
[1753161054964,1.858495,116930.0,116920.0,2.01098552]
[1753161056265,1.858495,116930.0,116920.0,2.07247357]
[1753161057165,1.924235,116930.0,116920.0,2.07223357]
[1753161057367,1.924235,116930.0,116920.0,1.53269755]
[1753161057554,2.27363102,116930.0,116920.0,1.47214755]
[1753161057759,2.27363102,116930.0,116920.0,1.49738604]
[1753161057760,1.984095,116930.0,116920.0,1.49738604]
[1753161058065,1.984095,116930.0,116920.0,1.78692206]
[1753161058366,1.984095,116930.0,116920.0,2.08747206]
[1753161058766,1.984095,116930.0,116920.0,1.84747206]
[1753161059359,2.27363102,116930.0,116920.0,1.32641654]
[1753161059559,2.27363102,116930.0,116920.0,1.20669]
[1753161059866,2.27363102,116930.0,116920.0,0.64672]
[1753161060067,2.27363102,116930.0,116920.0,0.69285683]
[1753161060262,2.27363102,116930.0,116920.0,0.86382643]
[1753161060263,1.984095,116930.0,116920.0,0.86382643]
[1753161060466,2.27363102,116930.0,116920.0,0.86382643]
[1753161060666,2.27363102,116930.0,116920.0,1.2581896]
[1753161060866,1.984095,116930.0,116920.0,1.2876296]
[1753161062576,1.984095,116930.0,116920.0,0.2811096]
[1753161063580,1.984095,116930.0,116920.0,0.6419096]
[1753161063775,1.984095,116930.0,116920.0,0.3241996]
[1753161064578,1.984095,116930.0,116920.0,0.6849996]
[1753161064770,1.984095,116930.0,116920.0,0.3241996]
[1753161065881,1.984095,116930.0,116920.0,0.6849996]
[1753161066380,1.984095,116930.0,116920.0,0.3241996]
[1753161066676,1.984095,116930.0,116920.0,0.74651195]
[1753161066881,1.984095,116930.0,116920.0,0.38571195]
[1753161067976,1.984095,116930.0,116920.0,0.74651195]
[1753161068280,1.984095,116930.0,116920.0,0.38571195]
[1753161068582,1.984095,116930.0,116920.0,0.17165235]
[1753161068583,2.27363102,116930.0,116920.0,0.17165235]
[1753161068777,2.27363102,116930.0,116920.0,0.04244]
[1753161068974,2.27363102,116930.0,116920.0,0.001]
[1753161070377,2.27363102,116930.0,116920.0,0.1719696]
[1753161070578,2.91835102,116930.0,116920.0,0.001]
[1753161070774,3.27915102,116930.0,116920.0,0.001]
[1753161070981,3.27915102,116930.0,116920.0,0.06251235]
[1753161071175,2.91835102,116930.0,116920.0,0.001]
[1753161071585,2.91835102,116930.0,116920.0,0.06251235]
[1753161072180,2.91835102,116930.0,116920.0,0.001]
[1753161072381,3.27915102,116930.0,116920.0,0.001]
[1753161073091,3.27915102,116930.0,116920.0,0.06251235]
[1753161073386,3.27915102,116930.0,116920.0,0.001]
[1753161073585,3.27915102,116930.0,116920.0,0.0471372]
[1753161074187,3.28778093,116930.0,116920.0,0.0471372]
[1753161074990,3.27915102,116930.0,116920.0,0.0471372]
[1753161075184,2.628815,116930.0,116920.0,0.0471372]
[1753161075389,2.91835102,116930.0,116920.0,0.2181068]
[1753161075886,2.91835102,116930.0,116920.0,0.3232668]
[1753161076892,1.984095,116930.0,116920.0,0.3232668]
[1753161077084,2.628015,116930.0,116920.0,0.3232668]
[1753161079394,2.91755102,116930.0,116920.0,0.3232668]
[1753161080987,2.628015,116930.0,116920.0,0.3232668]
[1753161081187,2.91755102,116930.0,116920.0,0.3232668]
[1753161081689,2.91699102,116930.0,116920.0,0.6840668]
[1753161081884,2.91699102,116930.0,116920.0,0.3232668]
[1753161082088,2.91699102,116930.0,116920.0,0.6840668]
[1753161082691,2.91699102,116930.0,116920.0,0.3232668]
[1753161083192,2.91699102,116930.0,116920.0,0.1522972]
[1753161083593,2.91699102,116930.0,116920.0,0.3232668]
[1753161084087,2.91699102,116930.0,116920.0,0.2771296]
[1753161085092,2.91699102,116930.0,116920.0,0.04141]
[1753161085393,2.91699102,116930.0,116920.0,0.32326234]
[1753161086797,2.91699102,116930.0,116920.0,0.68406234]
[1753161086998,2.91699102,116930.0,116920.0,0.32326234]
[1753161087299,2.91699102,116930.0,116920.0,0.68406234]
[1753161087600,1.984095,116930.0,116920.0,1.42492836]
[1753161087794,1.984095,116930.0,116920.0,1.42030797]
[1753161088300,1.984095,116930.0,116920.0,1.13077195]
[1753161088503,1.984095,116930.0,116920.0,1.42030797]
[1753161089292,1.984095,116930.0,116920.0,1.35879562]
[1753161089896,1.984095,116930.0,116920.0,1.42033717]
[1753161090098,1.984095,116930.0,116920.0,1.42033715]
[1753161090397,1.984095,116930.0,116920.0,1.35879562]
[1753161090704,1.984095,116930.0,116920.0,1.09033309]
[1753161091002,1.984095,116930.0,116920.0,1.41033309]
[1753161091696,1.984095,116930.0,116920.0,1.35211309]
[1753161092001,1.984095,116930.0,116920.0,0.99131309]
[1753161092399,1.984095,116930.0,116920.0,1.29057562]
[1753161092598,1.984095,116930.0,116920.0,1.34771562]
[1753161094907,1.984095,116930.0,116920.0,1.02771562]
[1753161095203,1.984095,116930.0,116920.0,1.35771562]
[1753161097001,1.965255,116930.0,116920.0,1.35771562]
[1753161097205,1.7474,116930.0,116920.0,1.64725164]
[1753161097704,1.7474,116930.0,116920.0,1.35771562]
[1753161098507,1.7474,116930.0,116920.0,1.64725164]
[1753161099009,1.7474,116930.0,116920.0,1.35771562]
[1753161099405,1.7474,116930.0,116920.0,1.35971562]
[1753161099701,1.7474,116930.0,116920.0,1.02971562]
[1753161099908,1.7474,116930.0,116920.0,1.36371562]
[1753161101005,1.7474,116930.0,116920.0,1.36171562]
[1753161101305,1.7474,116930.0,116920.0,1.36471562]
[1753161103112,1.918355,116930.0,116920.0,2.00575562]
[1753161103305,1.963435,116930.0,116920.0,2.00575562]
[1753161104403,1.79248,116930.0,116920.0,2.00475562]
[1753161104604,1.963435,116930.0,116920.0,2.00475562]
[1753161104810,1.79248,116930.0,116920.0,2.00475562]
[1753161105211,1.79248,116930.0,116920.0,2.00275562]
[1753161107809,1.81052,116930.0,116920.0,2.00275562]
[1753161108113,1.981475,116930.0,116920.0,2.00275562]
[1753161108815,1.81052,116930.0,116920.0,2.00275562]
[1753161110119,1.981475,116930.0,116920.0,2.00275562]
[1753161110517,1.981475,116930.0,116920.0,2.07948216]
[1753161111221,1.981475,116930.0,116920.0,2.22439636]
[1753161111618,1.981475,116930.0,116920.0,2.28587186]
[1753161111919,1.981475,116930.0,116920.0,2.20914532]
[1753161113220,1.981475,116930.0,116920.0,2.20914725]
[1753161113519,1.981475,116930.0,116920.0,2.20914691]
[1753161114120,1.81052,116930.0,116920.0,2.20914691]
[1753161115218,1.81052,116930.0,116920.0,2.14766982]
[1753161115419,1.79248,116930.0,116920.0,2.14766982]
[1753161116421,1.79248,116930.0,116920.0,2.36489493]
[1753161116422,0.22845624,116930.0,116920.0,2.36489493]
[1753161117319,0.16091624,116930.0,116920.0,2.36489493]
[1753161117915,0.22146624,116930.0,116920.0,2.36489493]
[1753161119119,0.22146624,116930.0,116920.0,2.29236454]
[1753161119721,0.05986,116930.0,116920.0,2.29236454]
[1753161120018,0.05986,116930.0,116920.0,2.46341254]
[1753161120423,0.13986,116930.0,116920.0,2.46341254]
[1753161120922,0.516745,116930.0,116920.0,2.00055207]
[1753161121118,0.516745,116930.0,116920.0,1.94341207]
[1753161121926,0.516745,116930.0,116920.0,2.02028991]
[1753161122127,0.34579,116930.0,116920.0,2.02028991]
[1753161122618,0.516745,116930.0,116920.0,2.07621991]
[1753161122823,0.34579,116930.0,116920.0,2.07621991]
[1753161123022,0.516745,116930.0,116920.0,2.07621991]
[1753161126127,0.516745,116930.0,116920.0,1.43741991]
[1753161126326,0.516745,116930.0,116920.0,2.07549991]
[1753161129326,0.80631747,116930.0,116920.0,0.94364744]
[1753161129532,0.80631747,116930.0,116920.0,1.01523584]
[1753161129730,0.516745,116930.0,116920.0,1.01523584]
[1753161129933,0.516745,116930.0,116920.0,1.08172584]
[1753161130232,0.516745,116930.0,116920.0,1.39839874]
[1753161130431,0.516745,116930.0,116920.0,1.47515658]
[1753161130627,0.516745,116930.0,116920.0,1.45782243]
[1753161130931,0.516745,116930.0,116920.0,1.43828243]
[1753161131533,0.516745,116930.0,116920.0,1.45782243]
[1753161131935,0.516745,116930.0,116920.0,1.7473949]
[1753161132130,0.34579,116930.0,116920.0,2.0133249]
[1753161132428,0.516745,116930.0,116920.0,2.0113249]
[1753161132634,0.34579,116930.0,116920.0,2.0113249]
[1753161132832,0.20041,116930.0,116920.0,2.23935368]
[1753161133027,0.20041,116930.0,116920.0,2.31623152]
[1753161133530,0.20041,116930.0,116920.0,2.31723152]
[1753161133937,0.20041,116930.0,116920.0,2.02765905]
[1753161134138,0.20041,116930.0,116920.0,2.02865905]
[1753161134439,0.20041,116930.0,116920.0,2.03065905]
[1753161134743,0.371365,116930.0,116920.0,2.03065905]
[1753161135035,0.412685,116930.0,116920.0,2.03065905]
[1753161135234,0.488155,116930.0,116920.0,2.03065905]
[1753161138245,0.488155,116930.0,116920.0,1.95378121]